Workbook

Sheet SIMULADOR
A4: CÓDIGO | B4: DESCRIÇÃO | C4: OBSERVAÇÃO | D4: VALOR | F4: DESCONTOS OBRIGATÓRIOS | I4: DESCONTOS FACULTATIVOS | L4: AVALIAÇÃO DE VERBAS
A5: 142 | B5: =IFERROR(VLOOKUP(A5,Dados!$A:$F,2,0),"") -> Piso Salarial | C5: =IFERROR(VLOOKUP(A5,Dados!$A:$F,4,0),"") -> Acatar | D5: 8000 | F5: IMPOSTO DE RENDA | I5: EMPRÉSTIMO CONSIGNADO | L5: CONSULTA CÓDIGO
A6: 3029 | B6: =IFERROR(VLOOKUP(A6,Dados!$A:$F,2,0),"") -> Artigo 133 Ce – Pró-Labore LC 1193/2013 | C6: =IFERROR(VLOOKUP(A6,Dados!$A:$F,4,0),"") -> Não Acatar | F6: CONTR. PREV. | I6: EMPRÉSTIMO CONSIGNADO
B7: =IFERROR(VLOOKUP(A7,Dados!$A:$F,2,0),"") ->  | C7: =IFERROR(VLOOKUP(A7,Dados!$A:$F,4,0),"") ->  | F7: PENSÃO ALIMENT. | I7: EMPRÉSTIMO CONSIGNADO | L7: DESCRIÇÃO DA VERBA
B8: =IFERROR(VLOOKUP(A8,Dados!$A:$F,2,0),"") ->  | C8: =IFERROR(VLOOKUP(A8,Dados!$A:$F,4,0),"") ->  | F8: IAMSPE | I8: FARMÁCIA | L8: =IFERROR(VLOOKUP(L6,Dados!$A:$B,2,0),"") -> 
B9: =IFERROR(VLOOKUP(A9,Dados!$A:$F,2,0),"") ->  | C9: =IFERROR(VLOOKUP(A9,Dados!$A:$F,4,0),"") ->  | F9: ACSPM | I9: SUPERMERCADO
B10: =IFERROR(VLOOKUP(A10,Dados!$A:$F,2,0),"") ->  | C10: =IFERROR(VLOOKUP(A10,Dados!$A:$F,4,0),"") ->  | F10: ADEPOM | I10: SEG. VIDA
B11: =IFERROR(VLOOKUP(A11,Dados!$A:$F,2,0),"") ->  | C11: =IFERROR(VLOOKUP(A11,Dados!$A:$F,4,0),"") ->  | F11: FEPOM | I11: AGEPOL | L11: OBSERVAÇÃO
B12: =IFERROR(VLOOKUP(A12,Dados!$A:$F,2,0),"") ->  | C12: =IFERROR(VLOOKUP(A12,Dados!$A:$F,4,0),"") ->  | F12: CBPM | I12: SIFUSPESP | L12: =IFERROR(VLOOKUP(L6,Dados!$A:$F,6,0),"") -> 
B13: =IFERROR(VLOOKUP(A13,Dados!$A:$F,2,0),"") ->  | C13: =IFERROR(VLOOKUP(A13,Dados!$A:$F,4,0),"") ->  | F13: OUTROS | I13: ASS. FUNERAL
B14: =IFERROR(VLOOKUP(A14,Dados!$A:$F,2,0),"") ->  | C14: =IFERROR(VLOOKUP(A14,Dados!$A:$F,4,0),"") ->  | F14: TOTAL [ | G14: =SUM(G5:G13) -> 0 | I14: APAS
B15: =IFERROR(VLOOKUP(A15,Dados!$A:$F,2,0),"") ->  | C15: =IFERROR(VLOOKUP(A15,Dados!$A:$F,4,0),"") ->  | I15: APEOESP
A16: TOTAL [ | D16: =SUM(D5:D15) -> 8000 | F16: DADOS DA MARGEM CONSIGNAVEL | I16: ASSOSSIAÇÕES DIVERSAS
F17: SALDO (Verbas Fixas - Desc. Obrig.) | G17: =D16-G14 -> 8000 | I17: OUTROS
B18: % DO CALCULO PREVIDENCIÁRIO A SER UTILIZADO | C18: =IF($D$16<=1212,"11%",IF($D$16<=3473.74,"12%",IF($D$16<=7087.22,"14%",IF($D$16>7087.22,"16%")))) -> 16% | F18: MARGEM CONSIGNÁVEL TOTAL BRUTA 30% | G18: =G17*30% -> 2400 | I18: TOTAL [ | J18: =SUM(J5:J17) -> 0
B19: CÁLCULO FINAL DA PREVIDENCIA | C19: =D16*C18 -> 1280 | F19: MARGEM CONSIGNÁVEL TOTAL BRUTA 35% | G19: =G17*35% -> 2800
B20: CÁLCULO FINAL DA PREVIDENCIA MILITARES 10,5% | C20: =IFERROR(D16*10.5%,"") -> 840 | F20: Comprometimento Compulsórios | G20: =IFERROR((G14)/D16,"") -> 0 | I20: INSERIR A PARCELA DE CARTÃO ]
B21: REGRA - BASE PREVIDÊNCIA** | F21: Comprometimento Facultativos | G21: =IFERROR((J18)/D16,"") -> 0 | J21: =SUM(J8:J16) -> 0
B22: ATÉ 1 SALÁRIO MINIMO - R$ 1.518,00 | C22: 0.11 | F22: Comprometimento TOTAL | G22: =SUM(G20:G21) -> 0 | I22: PREENCHER A QUANTIDADE DE DEPENDENTES [
B23: R$ 1.518,01 ATÉ R$ 4.022,46 | C23: 0.12 | F23: MARGEM DISPONÍVEL TOTAL 5% (100% da Margem) | G23: =G17*5%-J20 -> 400 | I23: VALOR DE DEDUÇÃO PELA QTDE. DE DEPENDENTES [ | J23: =(J22*189.59) -> 0
B24: R$ 4.022,47 ATÉ R$ 8.157,41 | C24: 0.14 | F24: MARGEM DISPONÍVEL TOTAL 15% (100% da Margem) | G24: =G17*15%-J21 -> 1200 | I24: CÁLCULO DO I.R.R.F. (proporcional a verbas fixas)
B25: ACIMA R$ 8.157,41 | C25: 0.16 | F25: MARGEM DISPONÍVEL TOTAL 30% (100% da Margem) | G25: =G18-J18 -> 2400
B26: CALCULO DA PREVIDÊNCIA - SPPREV | F26: MARGEM DISPONÍVEL TOTAL 35% (100% da Margem) | G26: =G19-J18 -> 2800 | I26: Base de Cálculo do I.R.R.F. | J26: =IF(J30="NÃO",D16-J23,IF(J30="SIM",(D16-(J31+J23)),"0")) -> 7435.2
B27: ATÉ 1 SALÁRIO MINIMO - R$ 1.518,00 - 11% | C27: =IFERROR(IF(AND($D$16<'BASE DE CÁLCULO IRRF E PREV.'!A23),$D$16*'BASE DE CÁLCULO IRRF E PREV.'!C22,0),0) -> 0 | F27: =IF(G26>=0,"AVERBAR, MARGEM POSITIVA","NÃO AVERBAR, MARGEM NEGATIVA") -> AVERBAR, MARGEM POSITIVA | I27: I.R.R.F. BASE | J27: =IF($J$26<='BASE DE CÁLCULO IRRF E PREV.'!$B$3,$J$26*'BASE DE CÁLCULO IRRF E PREV.'!C3,IF($J$26<='BASE DE CÁLCULO IRRF E PREV.'!$B$4,$J$26*'BASE DE CÁLCULO IRRF E PREV.'!$C$4,IF($J$26<='BASE DE CÁLCULO IRRF E PREV.'!$B$5,$J$26*'BASE DE CÁLCULO IRRF E PREV.'!C5,IF($J$26<='BASE DE CÁLCULO IRRF E PREV.'!$B$6,$J$26*'BASE DE CÁLCULO IRRF E PREV.'!C6,IF($J$26>'BASE DE CÁLCULO IRRF E PREV.'!$B$6,$J$26*'BASE DE CÁLCULO IRRF E PREV.'!C7,""))))) -> 2044.68
B28: R$ 1.518,01 ATÉ R$ 4.022,46 - Previdência 12% | C28: =IF(AND($D$16>'BASE DE CÁLCULO IRRF E PREV.'!B22,$D$16<'BASE DE CÁLCULO IRRF E PREV.'!A24),($D$16-J32)*'BASE DE CÁLCULO IRRF E PREV.'!C23,0) -> 0 | I28: VALOR DA DEDUÇÃO | J28: =IF($J$26<='BASE DE CÁLCULO IRRF E PREV.'!B3,'BASE DE CÁLCULO IRRF E PREV.'!$D$3,IF($J$26<='BASE DE CÁLCULO IRRF E PREV.'!$B$4,'BASE DE CÁLCULO IRRF E PREV.'!$D$4,IF($J$26<='BASE DE CÁLCULO IRRF E PREV.'!$B$5,'BASE DE CÁLCULO IRRF E PREV.'!$D$5,IF($J$26<='BASE DE CÁLCULO IRRF E PREV.'!$B$6,'BASE DE CÁLCULO IRRF E PREV.'!$D$6,IF($J$26>'BASE DE CÁLCULO IRRF E PREV.'!$B$6,'BASE DE CÁLCULO IRRF E PREV.'!D7))))) -> 896
B29: R$ 4.022,47 ATÉ R$ 8.157,41 - Previdência 14% | C29: =IF(AND($D$16>'BASE DE CÁLCULO IRRF E PREV.'!B23,$D$16<'BASE DE CÁLCULO IRRF E PREV.'!A25),($D$16-J32)*'BASE DE CÁLCULO IRRF E PREV.'!C24,0) -> 907.48 | I29: VALOR FINAL DO I.R.R.F. [ | J29: =J27-J28 -> 1148.68
B30: ACIMA R$ 8.157,41 - Previdência 16% | C30: =IF(AND($D$16>'BASE DE CÁLCULO IRRF E PREV.'!B24),($D$16-J32)*'BASE DE CÁLCULO IRRF E PREV.'!C25,0) -> 0 | I30: APLICA O DESCONTO SIMPLIFICADO DE R$ 564,80 ] | J30: sim
B31: *** UTILIZAR SOMENTE PARA APOSENTADOS COM DESCONTO DE PREVIDÊNCIA | J31: 564.8
J32: 1518

Sheet Dados
A1: Código | B1: Denominação | C1: Publicação no Diário Oficial | D1: observação | E1: LEI | F1: informação Complementar
A2: 142 | B2: Piso Salarial | D2: Acatar
A3: 1001 | B3: Salário Base | C3: Comunicado DDP/G-05, de 31/01/1994 => DOE: 01/02/1994 | D3: Acatar
A4: 1002 | B4: Salário Base Proporcional | C4: Comunicado DDP/G-05, de 31/01/1994 => DOE: 01/02/1994 | D4: Não Acatar
A5: 1003 | B5: Salário Base Estagiário | C5: Comunicado DDP/G-05, de 31/01/1994 => DOE: 01/02/1994 | D5: Não Acatar
A6: 1004 | B6: Salário Base Implantado | C6: Comunicado DDP/G-05, de 31/01/1994 => DOE: 01/02/1994 | D6: Acatar
A7: 1005 | B7: Salário Complemento LC 729/93 E 801/95 | C7: Comunicado DDP/G-05, de 31/01/1994 => DOE: 01/02/1994 | D7: Avaliar | E7: LC 729/93 E 801/95 | F7: Somente para Engenheiros, O servidor regido pela Consolidação das Leis do Trabalho, ocupante de função-atividade pertencente as séries de classes de Engenheiro, Arquiteto, Engenheiro Agrônomo e Assistente Agropecuário
A8: 1006 | B8: Subsídios Governardor / Vice Governardor | C8: Comunicado DDP/G-05, de 31/01/1994 => DOE: 01/02/1994 | D8: Não Acatar
A9: 1007 | B9: Piso Salarial – Reajuste Complementar | C9: Comunicado DDP/G-05, de 31/01/1994 => DOE: 01/02/1994 | D9: Acatar
A10: 1008 | B10: Salário Maternidade | C10: Comunicado DDP/G-15, de 30/09/2016 => DOE: 01/10/2016 | D10: Não Acatar
A11: 1009 | B11: Piso Salarial - Contratado | C11: Comunicado DDP/G-05, de 31/01/1994 => DOE: 01/02/1994 | D11: Não Acatar
A12: 1010 | B12: Piso Salarial - Perda De Gratificação De Representação | C12: Comunicado DDP/G-05, de 31/01/1994 => DOE: 01/02/1994 | D12: Não Acatar
A13: 1011 | B13: Salário Complemento - Técnico De Laboratório | C13: Comunicado DDP/G-15, de 30/09/2016 => DOE: 01/10/2016 | D13: Acatar
A14: 1012 | B14: Salário Complemento - Técnico De Radiologia | C14: Comunicado DDP/G-15, de 30/09/2016 => DOE: 01/10/2016 | D14: Acatar
A15: 1013 | B15: Salário Complemento - Cirurgião Dentista | C15: Comunicado DDP/G-15, de 30/09/2016 => DOE: 01/10/2016 | D15: Acatar
A16: 1014 | B16: Salário Complemento - Méd.Veterinário/Químico | C16: Comunicado DDP/G-15, de 30/09/2016 => DOE: 01/10/2016 | D16: Acatar
A17: 1015 | B17: Salário Complemento - Engenheiro - Salário Mínimo | C17: Comunicado DDP/G-15, de 30/09/2016 => DOE: 01/10/2016 | D17: Acatar
A18: 1016 | B18: Diferença De Jornada - Técnico de Laboratório | C18: Comunicado DDP/G-15, de 30/09/2016 => DOE: 01/10/2016 | D18: Acatar
A19: 1017 | B19: Complementação De Piso - Docente | C19: Comunicado DDP/G-05, de 02/02/1995 => DOE: 03/02/1995 | D19: Acatar
A20: 1018 | B20: Complementação Piso - Substituição Docente/ Res. -212/95 - Recuperação | C20: Comunicado DDP/G-05, de 02/02/1995 => DOE: 03/02/1995 | D20: Acatar
A21: 1019 | B21: Complementação De Piso – Especialista Da Educação | C21: Comunicado DDP/G-13, de 30/05/1995 => DOE: 01/06/1995 | D21: Não Acatar
A22: 1020 | B22: Piso Salarial - Perda Do Prêmio De Incentivo À Produtividade E Qualidade | C22: Comunicado DDP/G-43, de 04/11/1998 => DOE: 06/11/1998 | D22: Avaliar | F22: Para os atuais servidores que vierem a se aposentar a partir da data de vigência desta lei complementar, com direito a proventos calculados com base na remuneração do cargo efetivo ou função-atividade em que se der a aposentadoria, o PIPQ será computado no respectivo cálculo à razão de 1/30 (um trinta avos), por ano de recebimento.
A23: 1021 | B23: Abono Complementar Proporcional / Guarda Rodoviário | C23: Comunicado DDP/G-08, de 11/04/2000 => DOE: 13/04/2000 | D23: Não Acatar
A24: 1022 | B24: Piso - Perda De Gratificações | C24: Comunicado DDP/G-33, de 31/08/2000 => DOE: 02/09/2000 | D24: Não Acatar
A25: 1023 | B25: Padrão Do Estado / CBPM | C25: Comunicado DDP/G-07, de 31/01/2002 => DOE: 02/02/2002 | D25: Acatar
A26: 1024 | B26: Abono Complementar Agente De Escolta E Vigilância Penitenciária | C26: Comunicado DDP/G-22, de 15/08/2002 => DOE: 17/08/2002 | D26: Avaliar | F26: todos os efeitos legais. § 2º - O valor desta gratificação será computado no cálculo do décimo terceiro salário, nos termos do artigo 1º da Lei Complementar nº 644, de 26 de dezembro de 1989, e no cálculo do acréscimo de 1/3 (um terço) das férias, não podendo ser considerado para cálculo de quaisquer outras vantagens pecuniárias. § 3º - Sobre o valor da Gratificação por Atividade de Escolta e Vigilância – GAEV, incidirão os descontos previdenciários e de assistência médica devidos. Artigo 13 – O servidor que passar à inatividade, terá a Gratificação por Atividade de Escolta e Vigilância – GAEV, computada no cálculo de seus proventos, na base de 1/60 (um sessenta avos) para cada mês em que, no período dos 60 (sessenta) meses imediatamente anteriores
A27: 1025 | B27: Auxílio Mensal – SD PM Temporário | C27: Comunicado DDP/G-22, de 15/08/2002 => DOE: 17/08/2002 | D27: Não Acatar
A28: 1026 | B28: Benefício Previdenciário | C28: Comunicado DDPE/G-13, de 07/04/2005 => DOE: 09/04/2005 | D28: Avaliar | F28: Verificar se verba compõe a base prividenciária
A29: 1027 | B29: Salário Complemento - 1 Salário Mínimo | C29: Comunicado DDPE/G-17, de 28/07/2006 => DOE: 29/07/2006 | D29: Acatar
A30: 1028 | B30: Complemento Auxílio Previdenciário - Quadro Especial | C30: Comunicado DDPE/G-17, de 28/07/2006 => DOE: 29/07/2006 | D30: Avaliar | F30: Verificar se verba compõe a base prividenciária
A31: 1029 | B31: Subsídio Secretário De Estado | C31: Comunicado DDPE/G-13, de 14/05/2007 => DOE: 15/05/2007 | D31: Acatar
A32: 1030 | B32: Valor Base LC 1059/08 – Agente Fiscal De Rendas | C32: Comunicado DDPE/G-04, de 22/06/2012 => DOE: 27/06/2012 | D32: Avaliar | E32: Artigo 15 - A remuneração do Agente Fiscal de Rendas compreende:I - como parte fixa, o valor-base, expresso em quantidade de quotas, conforme o nível em que estiver enquadrado, constante do Anexo desta lei complementar; II - como parte variável: a) o prêmio de produtividade; b) outras que vierem a ser previstas em lei; III - como vantagens pecuniárias: a) o adicional por tempo de serviço, de que trata o artigo 129, calculado à razão de 5% (cinco por cento) por qüinqüênio de serviço, sobre o valor da parte fixa, acrescido do prêmio de produtividade e do “pro labore”, observado o disposto no inciso XVI do artigo 115, ambos da Constituição Estadual; b) a sexta-parte, de que trata o artigo 129 da Constituição Estadual, calculada sobre o valor da parte fixa, acrescido do prêmio de produtividade, do “pro labore” e do adicional por tempo de serviço; c) décimo terceiro salário; d) acréscimo de 1/3 (um terço) das férias; e) “pro labore”; f) adicional de transporte como ajuda de custo para indenizar despesas de locomoção; g) verba indenizatória pelo exercício em unidades localizadas nas divisas do Estado; h) diárias; i) gratificação de representação, de que trata o inciso III do artigo 135 da Lei nº 10.261, de 28 de outubro de 1968. | F32: Verificar se verba compõe a base prividenciária
A33: 1031 | B33: Benefício Previdenciário – SPPREV | C33: Comunicado DDPE/G-04, de 22/06/2012 => DOE: 27/06/2012 | D33: Acatar
A34: 1032 | B34: Salário Complemento - Médicos LC 1193/2013 | C34: Comunicado DDP/G-003, de 27/10/2014 => DOE: 29/10/2014 | D34: Acatar
A35: 1033 | B35: Saldo De Benefício | C35: Comunicado DDP/G-14, de 28/09/2016 => DOE: 29/09/2016 | D35: Não Acatar
A36: 1034 | B36: Benefício Previdenciário Pensão - São Paulo Previdência | C36: Comunicado DDP/G-14, de 28/09/2016 => DOE: 29/09/2016 | D36: Avaliar | F36: Verificar se verba compõe a base prividenciária
A37: 1035 | B37: Piso Salarial Docente - Decreto 62500/2017 | C37: Comunicado DDP/G-03, de 14/06/2018 => DOE: 15/06/2018 | D37: Acatar
A38: 1036 | B38: Piso Salarial Docente-Substituição Docente/ Aulas De Recuperacao / Reposicao / Vice Diretor | C38: Comunicado DDP/G-03, de 14/06/2018 => DOE: 15/06/2018 | D38: Não Acatar
A39: 1037 | B39: Benefício Previdenciário – Teto RGPS | C39: Comunicado DDP/G-05, de 03/07/2020 => DOE: 04/07/2020 | D39: Acatar
A40: 1040 | B40: Salário Base - LC1374/22-Subsidio | D40: Acatar | E40: LC1374/22-Subsidio | F40: SEM OBSERVAÇÕES
A41: 1041 | B41: Piso Sal Nac Enfermagem Ent Descent | D41: Acatar
A42: 1046 | B42: Subsidio Policial Penal LC 1416/24 | D42: Acatar | E42: LEI COMPLEMENTAR N° 1.416, DE 26 DE SETEMBRO DE 2024 | F42: Artigo 3° - Para efeitos desta lei complementar são adotadas as seguintes definições: I - cargo de policial penal: conjunto de atribuições e responsabilidades conferidas ao policial penal; II - carreira de policial penal: estrutura composta por cargos de provimento efetivo de policial penal e respectivos níveis; III - evolução: forma de avanço nos níveis da carreira mediante aferição de desempenho e de desenvolvimento; IV - categoria: elemento alfabético indicativo da posição do policial penal no respectivo nível; V - nível: elemento numérico indicativo da posição do policial penal na escala de evolução funcional; VI - subsídio: contraprestação pecuniária fixada em lei, paga mensalmente pelo efetivo exercício do cargo de policial penal.
A43: 2001 | B43: Carga Suplementar / Horária - Professor I | C43: Comunicado DDP/G-05, de 31/01/1994 => DOE: 01/02/1994 | D43: Não Acatar
A44: 2002 | B44: Carga Suplementar / Horária - Professor II | C44: Comunicado DDP/G-05, de 31/01/1994 => DOE: 01/02/1994 | D44: Não Acatar
A45: 2003 | B45: Carga Suplementar / Horária - Professor III | C45: Comunicado DDP/G-05, de 31/01/1994 => DOE: 01/02/1994 | D45: Não Acatar
A46: 2004 | B46: Carga Suplementar – Média / Inativo Disponibilidade | C46: Comunicado DDP/G-05, de 31/01/1994 => DOE: 01/02/1994 | D46: Não Acatar
A47: 2005 | B47: Carga Suplementar - Média Readaptado | C47: Comunicado DDP/G-05, de 31/01/1994 => DOE: 01/02/1994 | D47: Não Acatar
A48: 2006 | B48: Aulas Excedentes – Conservatório Musical Tatuí | C48: Comunicado DDP/G-05, de 31/01/1994 => DOE: 01/02/1994 | D48: Não Acatar
A49: 2007 | B49: Aulas – Inativo – Conservatório Musical Tatuí | C49: Comunicado DDP/G-05, de 31/01/1994 => DOE: 01/02/1994 | D49: Avaliar | F49: Verificar se verba compõe a base prividenciária
A50: 2008 | B50: Gratificação Trabalho Curso Noturno – Escola Padrão - Professor I - 30% | C50: Comunicado DDP/G-05, de 31/01/1994 => DOE: 01/02/1994 | D50: Não Acatar
A51: 2009 | B51: Gratificação Trabalho Curso Noturno – Escola Padrão - Professor II - 30% | C51: Comunicado DDP/G-05, de 31/01/1994 => DOE: 01/02/1994 | D51: Não Acatar
A52: 2010 | B52: Gratificação Trabalho Curso Noturno –Escola Padrão - Professor III - 30% | C52: Comunicado DDP/G-05, de 31/01/1994 => DOE: 01/02/1994 | D52: Não Acatar
A53: 2011 | B53: Gratificação Trabalho Curso Noturno – Professor I - 20% | C53: Comunicado DDP/G-05, de 31/01/1994 => DOE: 01/02/1994 | D53: Não Acatar
A54: 2012 | B54: Gratificação Trabalho Curso Noturno - Professor II - 20% | C54: Comunicado DDP/G-05, de 31/01/1994 => DOE: 01/02/1994 | D54: Não Acatar
A55: 2013 | B55: Gratificação Trabalho Curso Noturno – Professor III - 20% | C55: Comunicado DDP/G-05, de 31/01/1994 => DOE: 01/02/1994 | D55: Não Acatar
A56: 2014 | B56: Serviço Extraordinário – Professor I | C56: Comunicado DDP/G-05, de 31/01/1994 => DOE: 01/02/1994 | D56: Não Acatar
A57: 2015 | B57: Serviço Extraordinário – Professor II | C57: Comunicado DDP/G-05, de 31/01/1994 => DOE: 01/02/1994 | D57: Não Acatar
A58: 2016 | B58: Serviço Extraordinário – Professor III | C58: Comunicado DDP/G-05, de 31/01/1994 => DOE: 01/02/1994 | D58: Não Acatar
A59: 2017 | B59: Substituição Docente – Professor I | C59: Comunicado DDP/G-05, de 31/01/1994 => DOE: 01/02/1994 | D59: Não Acatar
A60: 2018 | B60: Substituição Docente – Professor II | C60: Comunicado DDP/G-05, de 31/01/1994 => DOE: 01/02/1994 | D60: Não Acatar
A61: 2019 | B61: Substituição Docente – Professor III | C61: Comunicado DDP/G-05, de 31/01/1994 => DOE: 01/02/1994 | D61: Não Acatar
A62: 2020 | B62: Substituição Docente - Estagiário | C62: Comunicado DDP/G-05, de 31/01/1994 => DOE: 01/02/1994 | D62: Não Acatar
A63: 2021 | B63: Substituição Docente – Gratificação Trabalho Curso Noturno – Professor I - 20% | C63: Comunicado DDP/G-05, de 31/01/1994 => DOE: 01/02/1994 | D63: Não Acatar
A64: 2022 | B64: Substituição Docente – Gratificação Trabalho Curso Noturno – Professor II - 20% | C64: Comunicado DDP/G-05, de 31/01/1994 => DOE: 01/02/1994 | D64: Não Acatar
A65: 2023 | B65: Substituição Docente – Gratificação Trabalho Curso Noturno – Professor III - 20% | C65: Comunicado DDP/G-05, de 31/01/1994 => DOE: 01/02/1994 | D65: Não Acatar
A66: 2024 | B66: Substituição Docente – Gratificação Curso Noturno – Professor I - 30% | C66: Comunicado DDP/G-05, de 31/01/1994 => DOE: 01/02/1994 | D66: Não Acatar
A67: 2025 | B67: Substituição Docente – Gratificação Curso Noturno – Professor II - 30% | C67: Comunicado DDP/G-05, de 31/01/1994 => DOE: 01/02/1994 | D67: Não Acatar
A68: 2026 | B68: Substituição Docente – Gratificação Curso Noturno – Professor III - 30% | C68: Comunicado DDP/G-25, de 13/09/1995 => DOE: 14/09/1995 | D68: Não Acatar
A69: 2027 | B69: Aulas – Alteração Cargo / Padrão | C69: Comunicado DDP/G-25, de 13/09/1995 => DOE: 14/09/1995 | D69: Não Acatar
A70: 2028 | B70: Carga Horária - Docente - Resolução 212/95 | C70: Comunicado DDP/G-25, de 13/09/1995 => DOE: 14/09/1995 | D70: Não Acatar
A71: 2029 | B71: Gratificação Trabalho Curso Noturno - 30% - Resolução 212/95 | C71: Comunicado DDP/G-25, de 13/09/1995 => DOE: 14/09/1995 | D71: Não Acatar
A72: 2030 | B72: Gratificação Trabalho Curso Noturno - 20% - Resolução 212/95 | C72: Comunicado DDP/G-24, de 06/05/1996 => DOE: 09/05/1996 | D72: Não Acatar
A73: 2031 | B73: Adicional Local De Exercício - Docente - Resolução 212/95 | C73: Comunicado DDP/G-24, de 06/05/1996 => DOE: 09/05/1996 | D73: Não Acatar
A74: 2032 | B74: Prêmio De Valorização – Quadro Do Magistério | C74: Comunicado DDP/G-24, de 06/05/1996 => DOE: 09/05/1996 | D74: Avaliar | E74: Programa de Valorização pelo Mérito garante evolução na carreira: Uma política inédita implantada pela Secretaria da Educação permite que os educadores paulistas evoluam na carreira a partir de oito níveis de progressão salarial com intervalos de três anos e aumentos de 10,5% sobre o salário, o que também amplia os valores das vantagens financeiras adquiridas durante a vida funcional. Para isso, os profissionais participam de uma prova, realizada anualmente, na qual todos os que atingirem determinadas metas de avaliação, a serem estabelecidas, conquistam a evolução na carreira. As avaliações são destinadas a professores, diretores de escola, assistentes de diretor, supervisores de ensino e coordenadores pedagógicos efetivos ou estáveis. Além da avaliação aplicada em todas as 91 Diretorias de Ensino, são exigidos outros critérios para participar do processo, como tempo de atuação contínuo de pelo menos quatro anos no mesmo cargo e assiduidade. Desde 2010, o Programa de Valorização pelo Mérito já promoveu 127 mil docentes de todo o Estado. Os docentes promovidos devem esperar um intervalo mínimo de três anos para concorrer em novo processo. https://www.educacao.sp.gov.br/valorizacao | F74: Verificar se verba compõe a base prividenciária
A75: 2033 | B75: Prêmio De Valorização – Quadro De Apoio Escolar / Quadro Secretaria Educação | C75: Comunicado DDP/G-34, de 01/07/1996 => DOE: 03/07/1996 | D75: Avaliar | E75: Programa de Valorização pelo Mérito garante evolução na carreira: Uma política inédita implantada pela Secretaria da Educação permite que os educadores paulistas evoluam na carreira a partir de oito níveis de progressão salarial com intervalos de três anos e aumentos de 10,5% sobre o salário, o que também amplia os valores das vantagens financeiras adquiridas durante a vida funcional. Para isso, os profissionais participam de uma prova, realizada anualmente, na qual todos os que atingirem determinadas metas de avaliação, a serem estabelecidas, conquistam a evolução na carreira. As avaliações são destinadas a professores, diretores de escola, assistentes de diretor, supervisores de ensino e coordenadores pedagógicos efetivos ou estáveis. Além da avaliação aplicada em todas as 91 Diretorias de Ensino, são exigidos outros critérios para participar do processo, como tempo de atuação contínuo de pelo menos quatro anos no mesmo cargo e assiduidade. Desde 2010, o Programa de Valorização pelo Mérito já promoveu 127 mil docentes de todo o Estado. Os docentes promovidos devem esperar um intervalo mínimo de três anos para concorrer em novo processo. https://www.educacao.sp.gov.br/valorizacao | F75: Verificar se verba compõe a base prividenciária
A76: 2034 | B76: Prêmio De Valorização – Substituição Docente/ Reposição/ Recuperação | C76: Comunicado DDP/G-34, de 01/07/1996 => DOE: 03/07/1996 | D76: Avaliar | F76: Verificar se verba compõe a base prividenciária
A77: 2035 | B77: Aulas Reforço / Recuperação – 1 A 4 Série | C77: Comunicado DDP/G-34, de 01/07/1996 => DOE: 03/07/1996 | D77: Não Acatar
A78: 2036 | B78: Aulas Reforço / Recuperação – 5 A 8 Série | C78: Comunicado DDP/G-34, de 01/07/1996 => DOE: 03/07/1996 | D78: Não Acatar
A79: 2037 | B79: Aulas Reforço / Recuperação – Ensino Médio | C79: Comunicado DDP/G-34, de 01/07/1996 => DOE: 03/07/1996 | D79: Não Acatar
A80: 2038 | B80: Gratificação Trabalho Curso Noturno - Aulas Reforço / Recuperação – 1 A 4 | C80: Comunicado DDP/G-34, de 01/07/1996 => DOE: 03/07/1996 | D80: Não Acatar
A81: 2039 | B81: Gratificação Trabalho Curso Noturno - Aulas Reforço / Recuperação – 5 A 8 | C81: Comunicado DDP/G-34, de 01/07/1996 => DOE: 03/07/1996 | D81: Não Acatar
A82: 2040 | B82: Gratificação Trabalho Curso Noturno – Aulas Reforço / Recuperação – Ensino Médio | C82: Comunicado DDP/G-07, de 11/02/1998 => DOE: 12/02/1998 | D82: Não Acatar
A83: 2041 | B83: Adicional Local De Exercício - Recuperação / Avaliação | C83: Comunicado DDP/G-07, de 11/02/1998 => DOE: 12/02/1998 | D83: Não Acatar
A84: 2042 | B84: Aulas De Recuperação/Avaliação – Quadro Do Magistério | C84: Comunicado DDP/G-07, de 11/02/1998 => DOE: 12/02/1998 | D84: Não Acatar
A85: 2043 | B85: Carga Horária/Suplementar – 1ª A 4ª Série | C85: Comunicado DDP/G-07, de 11/02/1998 => DOE: 12/02/1998 | D85: Não Acatar
A86: 2044 | B86: Carga Horária/Suplementar – 5ª A 8ª Série | C86: Comunicado DDP/G-07, de 11/02/1998 => DOE: 12/02/1998 | D86: Não Acatar
A87: 2045 | B87: Carga Horária/Suplementar - Ensino Médio | C87: Comunicado DDP/G-07, de 11/02/1998 => DOE: 12/02/1998 | D87: Não Acatar
A88: 2046 | B88: Carga Horária/Suplementar - Coordenador/Vice Diretor | C88: Comunicado DDP/G-07, de 11/02/1998 => DOE: 12/02/1998 | D88: Não Acatar
A89: 2047 | B89: Substituição Docente – 1ª A 4ª Série | C89: Comunicado DDP/G-07, de 11/02/1998 => DOE: 12/02/1998 | D89: Não Acatar
A90: 2048 | B90: Substituição Docente – 5ª A 8ª Série | C90: Comunicado DDP/G-07, de 11/02/1998 => DOE: 12/02/1998 | D90: Não Acatar
A91: 2049 | B91: Substituição Docente - Ensino Médio | C91: Comunicado DDP/G-07, de 11/02/1998 => DOE: 12/02/1998 | D91: Não Acatar
A92: 2050 | B92: Substituição Docente - Estagiário | C92: Comunicado DDP/G-07, de 11/02/1998 => DOE: 12/02/1998 | D92: Não Acatar
A93: 2051 | B93: Carga Horária/Suplementar | C93: Comunicado DDP/G-07, de 11/02/1998 => DOE: 12/02/1998 | D93: Não Acatar
A94: 2052 | B94: Gratificação Trabalho Curso Noturno – 1ª A 4ª Série | C94: Comunicado DDP/G-07, de 11/02/1998 => DOE: 12/02/1998 | D94: Não Acatar
A95: 2053 | B95: Gratificação Trabalho Curso Noturno – 5ª A 8ª Série | C95: Comunicado DDP/G-07, de 11/02/1998 => DOE: 12/02/1998 | D95: Não Acatar
A96: 2054 | B96: Gratificação Trabalho Curso Noturno - Ensino Médio | C96: Comunicado DDP/G-07, de 11/02/1998 => DOE: 12/02/1998 | D96: Não Acatar
A97: 2055 | B97: Gratificação Trabalho Curso Noturno - Coordenador/Vice Diretor | C97: Comunicado DDP/G-07, de 11/02/1998 => DOE: 12/02/1998 | D97: Não Acatar
A98: 2056 | B98: Substituição Docente - Gratificação Trabalho Curso Noturno – 1ª A 4ª Série | C98: Comunicado DDP/G-07, de 11/02/1998 => DOE: 12/02/1998 | D98: Não Acatar
A99: 2057 | B99: Substituição Docente - Gratificação Trabalho Curso Noturno – 5ª A 8ª Série | C99: Comunicado DDP/G-07, de 11/02/1998 => DOE: 12/02/1998 | D99: Não Acatar
A100: 2058 | B100: Substituição Docente - Gratificação Trabalho Curso Noturno - Ensino Médio | C100: Comunicado DDP/G-43, de 04/11/1998 => DOE: 06/11/1998 | D100: Não Acatar
A101: 2059 | B101: Gratificação Trabalho Curso Noturno | C101: Comunicado DDP/G-43, de 04/11/1998 => DOE: 06/11/1998 | D101: Não Acatar
A102: 2060 | B102: Aulas De Reposição 1ª A 4ª Série | C102: Comunicado DDP/G-43, de 04/11/1998 => DOE: 06/11/1998 | D102: Não Acatar
A103: 2061 | B103: Aulas De Reposição 5ª A 8ª Série | C103: Comunicado DDP/G-43, de 04/11/1998 => DOE: 06/11/1998 | D103: Não Acatar
A104: 2062 | B104: Aulas De Reposição - Ensino Médio | C104: Comunicado DDP/G-43, de 04/11/1998 => DOE: 06/11/1998 | D104: Não Acatar
A105: 2063 | B105: Gratificação Trabalho Curso Noturno - Aulas Reposição 1ª A 4ª Série | C105: Comunicado DDP/G-43, de 04/11/1998 => DOE: 06/11/1998 | D105: Não Acatar
A106: 2064 | B106: Gratificação Trabalho Curso Noturno - Aulas Reposição 5ª A 8ª Série | C106: Comunicado DDP/G-43, de 04/11/1998 => DOE: 06/11/1998 | D106: Não Acatar
A107: 2065 | B107: Gratificação Trabalho Curso Noturno - Aulas Reposição Ensino Médio | C107: Comunicado DDP/G-43, de 04/11/1998 => DOE: 06/11/1998 | D107: Não Acatar
A108: 2066 | B108: Substituição Vice Diretor De Escola | C108: Comunicado DDPE/G-13, de 14/05/2007 => DOE: 15/05/2007 | D108: Não Acatar
A109: 2067 | B109: Gratificação Trabalho Curso Noturno - Substituição Vice Diretor De Escola | C109: Comunicado DDPE/G-13, de 14/05/2007 => DOE: 15/05/2007 | D109: Não Acatar
A110: 2068 | B110: Aulas Substituição 1ª A 4ª Série | C110: Comunicado DDPE/G-13, de 14/05/2007 => DOE: 15/05/2007 | D110: Não Acatar
A111: 2069 | B111: Aulas Substituição 5ª A 8ª Série | C111: Comunicado DDPE/G-13, de 14/05/2007 => DOE: 15/05/2007 | D111: Não Acatar
A112: 2070 | B112: Aulas Substituição Ensino Médio | C112: Comunicado DDPE/G-13, de 14/05/2007 => DOE: 15/05/2007 | D112: Não Acatar
A113: 2071 | B113: Gratificação Trabalho Noturno-Aulas Substituição 1ª A 4ª Série | C113: Comunicado DDPE/G-13, de 14/05/2007 => DOE: 15/05/2007 | D113: Não Acatar
A114: 2072 | B114: Gratificação Trabalho Noturno-Aulas Substituição 5ª A 8ª Série | C114: Comunicado DDPE/G-13, de 14/05/2007 => DOE: 15/05/2007 | D114: Não Acatar
A115: 2073 | B115: Gratificação Trabalho Noturno-Aulas Substituição Ensino Médio | C115: Comunicado DDP/G-05, de 31/01/1994 => DOE: 01/02/1994 | D115: Não Acatar
A116: 2074 | B116: Prêmio Valorização - Aulas Substituição | C116: Comunicado DDP/G-05, de 31/01/1994 => DOE: 01/02/1994 | D116: Não Acatar
A117: 2075 | B117: Carga Suplementar – Professor Educação Básica I | C117: Comunicado DDP/G-003, de 27/10/2014 => DOE: 29/10/2014 | D117: Não Acatar
A118: 2076 | B118: Carga Suplementar - Professor II | C118: Comunicado DDP/G-003, de 27/10/2014 => DOE: 29/10/2014 | D118: Não Acatar
A119: 2077 | B119: Carga Suplementar - Professor Educação Básica II | C119: Comunicado DDP/G-003, de 27/10/2014 => DOE: 29/10/2014 | D119: Não Acatar
A120: 2078 | B120: Carga Suplementar- Professor Coordenador | C120: Comunicado DDP/G-003, de 27/10/2014 => DOE: 29/10/2014 | D120: Não Acatar
A121: 2079 | B121: Carga Suplementar.-Vice Diretor Escola | C121: Comunicado DDP/G-003, de 27/10/2014 => DOE: 29/10/2014 | D121: Não Acatar
A122: 2080 | B122: Carga Suplementar-Municipalização | C122: Comunicado DDP/G-003, de 27/10/2014 => DOE: 29/10/2014 | D122: Não Acatar
A123: 2081 | B123: Gratificação Trabalho Curso Noturno - Professor Educação Básica I | C123: Comunicado DDP/G-003, de 27/10/2014 => DOE: 29/10/2014 | D123: Não Acatar
A124: 2082 | B124: Gratificação Trabalho Curso Noturno - Professor II | C124: Comunicado DDP/G-003, de 27/10/2014 => DOE: 29/10/2014 | D124: Não Acatar
A125: 2083 | B125: Gratificação Trabalho Curso Noturno - Professor Educação Básica II | C125: Comunicado DDP/G-003, de 27/10/2014 => DOE: 29/10/2014 | D125: Não Acatar
A126: 2084 | B126: Gratificação Trabalho Curso Noturno - Professor Coordenador | C126: Comunicado DDP/G-003, de 27/10/2014 => DOE: 29/10/2014 | D126: Não Acatar
A127: 2085 | B127: Gratificação Trabalho Curso Noturno – Vice-Diretor De Escola | C127: Comunicado DDP/G-003, de 27/10/2014 => DOE: 29/10/2014 | D127: Não Acatar
A128: 2086 | B128: Gratificação Trabalho Curso Noturno – Municipalização | C128: Comunicado DDP/G-003, de 27/10/2014 => DOE: 29/10/2014 | D128: Não Acatar
A129: 2087 | B129: Substituição Docente - Professor Educação Básica I | C129: Comunicado DDP/G-003, de 27/10/2014 => DOE: 29/10/2014 | D129: Não Acatar
A130: 2088 | B130: Substituição Docente - Professor II | C130: Comunicado DDP/G-003, de 27/10/2014 => DOE: 29/10/2014 | D130: Não Acatar
A131: 2089 | B131: Substituição Docente - Professor Educação Básica II | C131: Comunicado DDP/G-003, de 27/10/2014 => DOE: 29/10/2014 | D131: Não Acatar
A132: 2090 | B132: Gratificação Trabalho Curso Noturno -Substituição Docente - Professor Educação Básica I | C132: Comunicado DDP/G-003, de 27/10/2014 => DOE: 29/10/2014 | D132: Não Acatar
A133: 2091 | B133: Gratificação Trabalho Curso Noturno - Substituição Docente-Professor.II | C133: Comunicado DDP/G-003, de 27/10/2014 => DOE: 29/10/2014 | D133: Não Acatar
A134: 2092 | B134: Gratificação Trabalho Curso Noturno - Substituição Docente- Professor Educação Básica II | C134: Comunicado DDP/G-003, de 27/10/2014 => DOE: 29/10/2014 | D134: Não Acatar
A135: 2093 | B135: Adicional Local De Exercício - Docente - Resolução 212/95 - Inativo | C135: Comunicado DDP/G-003, de 27/10/2014 => DOE: 29/10/2014 | D135: Avaliar | F135: Verificar se verba compõe a base prividenciária
A136: 2110 | B136: Gtn- Anos E Finais | D136: Não Acatar
A137: 2111 | B137: Gtn-Ensino Medio | D137: Não Acatar
A138: 2124 | B138: Grat Trabalho Noturno - Gtn | D138: Não Acatar
A139: 2700 | B139: Hora Aula Etec Resposicao | D139: Não Acatar
A140: 2712 | B140: Hora Atividade Etec | D140: Acatar
A141: 2723 | B141: Hora Aula Semanal Etec | D141: Acatar
A142: 2724 | B142: Hae Coordenação Semanal Etec | D142: Não Acatar
A143: 2725 | B143: Hae Outros Semanal | D143: Não Acatar
A144: 2754 | B144: Haeo Semanal | D144: Acatar | F144: Autorizado por Rafael Previatti
A145: 2770 | B145: HAEO - Formação Inicial Continuada | C145: HAEO – Formação Inicial Continuada | D145: Avaliar | F145: A verba é variável e possui um prazo/período aquisitivo de até 12 meses
A146: 3001 | B146: Vantagem De Lei De Guerra | C146: Comunicado DDP/G-05, de 31/01/1994 => DOE: 01/02/1994 | D146: Acatar
A147: 3002 | B147: Artigo 25 - Disposições Constitucionais Transitórias – Constituição Estadual / Artigo 26/Decreto Lei Complementar 11/70 | C147: Comunicado DDP/G-05, de 31/01/1994 => DOE: 01/02/1994 | D147: Avaliar | E147: Lei Complementar 11/70 | F147: Artigo 25 - As gratificações e adicionais serão calculados sôbre o padrão do cargo do funcionário.Artigo 26 - O funcionário ocupante de cargo em comissão direito a aposentadoria que contar mais de dez anos interruptos ou quinze aposentado com provento correspondentes aos vencimentos do cargos que estiver exercendo.
A148: 3003 | B148: Artigo 26 – Disposições Constitucionais Transitórias – Constituição Estadual – Diferença De Vencimentos | C148: Comunicado DDP/G-05, de 31/01/1994 => DOE: 01/02/1994 | D148: Avaliar | F148: Artigo 26 - O funcionário ocupante de cargo em comissão direito a aposentadoria que contar mais de dez anos interruptos ou quinze aposentado com provento correspondentes aos vencimentos do cargos que estiver exercendo.
A149: 3004 | B149: Artigo 25 - Disposições Constitucionais Transitórias – Constituição Estadual – Pro Labore Carreira Específica | C149: Comunicado DDP/G-05, de 31/01/1994 => DOE: 01/02/1994 | D149: Não Acatar
A150: 3005 | B150: Artigo 133 - Constituição Estadual – Diferença De Vencimentos | C150: Comunicado DDP/G-05, de 31/01/1994 => DOE: 01/02/1994 | D150: Avaliar | E150: “Artigo 2º - Fica revogado o artigo 133 da Constituição do Estado de São Paulo, assegurada a concessão das incorporações que, na data da promulgação da Emenda Constitucional nº 103, de 12 de novembro de 2019, tenham cumprido os requisitos temporais e normativos previstos na legislação então vigente.” | F150: Entretanto, caso o servidor tenha direito a verba em questão nos moldes acima citados e por algum momento efetue o “Rompimento de Vínculo”, ou seja , venha assumir novo cargo na administração não recuperará os décimos anteriormente incorporados.
A151: 3006 | B151: Artigo 133 – Constituição Estadual – Ministério Público / Tribunais | C151: Comunicado DDP/G-05, de 31/01/1994 => DOE: 01/02/1994 | D151: Avaliar | E151: Artigo 133 - O servidor, com mais de cinco anos de efetivo exercício, que tenha exercido ou venha a exercer cargo ou função que lhe proporcione remuneração superior à do cargo de que seja titular, ou função para a qual foi admitido, incorporará um décimo dessa diferença, por ano, até o limite de dez décimos. | F151: O Artigo trata-se da incorporção de decimos
A152: 3007 | B152: Artigo 133 – Constituição Estadual – Pró-Labore Carreira Específica | C152: Comunicado DDP/G-05, de 31/01/1994 => DOE: 01/02/1994 | D152: Não Acatar
A153: 3008 | B153: Artigo 133 – Constituição Estadual – Pró-Labore – LC 674/92 | C153: Comunicado DDP/G-07, de 11/02/1998 => DOE: 12/02/1998 | D153: Não Acatar
A154: 3009 | B154: Auxílio Acidente - EFP | C154: Comunicado DDP/G-33, de 31/08/2000 => DOE: 02/09/2000 | D154: Avaliar | F154: Verificar se verba compõe a base prividenciária
A155: 3010 | B155: Serviço Extraordinário - Incorporado | C155: Comunicado DDP/G-15, de 30/09/2016 => DOE: 01/10/2016 | D155: Acatar
A156: 3011 | B156: Quebra de Caixa - Incorporado | C156: Comunicado DDP/G-15, de 30/09/2016 => DOE: 01/10/2016 | D156: Acatar
A157: 3012 | B157: Artigo 133 Constituição Estadual - Lei 7510/62 | C157: Comunicado DDP/G-15, de 30/09/2016 => DOE: 01/10/2016 | D157: Avaliar | F157: O servidor, com mais de cinco anos de efetivo exercício, que tenha exercido ou venha a exercer cargo ou função que lhe proporcione remuneração superior à do cargo de que seja titular, ou função para a qual foi admitido, incorporará um décimo dessa diferença, por ano, até o limite de dez décimos.
A158: 3013 | B158: Artigo 133 Constituição Estadual - Pro-Labore Caixa Dec.S/N/70 - Polícia Militar | C158: Comunicado DDP/G-15, de 30/09/2016 => DOE: 01/10/2016 | D158: Não Acatar
A159: 3014 | B159: Artigo 133 - Lei 8253/64 | C159: Comunicado DDP/G-15, de 30/09/2016 => DOE: 01/10/2016 | D159: Avaliar | F159: O servidor, com mais de cinco anos de efetivo exercício, que tenha exercido ou venha a exercer cargo ou função que lhe proporcione remuneração superior à do cargo de que seja titular, ou função para a qual foi admitido, incorporará um décimo dessa diferença, por ano, até o limite de dez décimos.
A160: 3015 | B160: Artigo 10 - Lei 6895/62 | C160: Comunicado DDP/G-15, de 30/09/2016 => DOE: 01/10/2016 | D160: Avaliar | E160: Lei 6895/62 | F160: Verificar se verba compõe a base prividenciária
A161: 3016 | B161: Artigo 3 - Lei 920/50 | C161: Comunicado DDP/G-15, de 30/09/2016 => DOE: 01/10/2016 | D161: Avaliar | E161: Lei 920/50 | F161: Artigo 1º - Passa a ter a seguinte redação o artigo 3º da Lei nº 501, de 7 de novembro de 1949: Ver tópico Artigo 1º - Os inspetores e guardas do serviço de policiamento da Guarda Civil de São Paulo, que contarem mais de vinte e cinco (25) anos de serviços prestados àquela corporação, serão aposentados no cargo ou classe imediatamente superior, com os proventos correspondentes aos vencimentos integrais dos mesmos cargos ou classe, sempre que a aposentadoria seja motivada por qualquer dos casos expressos no artigo 1º." Artigo 2º - Aplica-se aos Inspetores chefes de agrupamento o artigo 3º da Lei nº 501, de 7 de novembro de 1949, com a redação dada por esta lei entrará em vigor na data de sua publicação. Ver tópico Artigo 3º - Os inspetores chefes de agrupamento que se aposentarem nas condições do dispositivo referido no artigo anterior, e os já aposentados durante a sua vigência, terão seus proventos acrescidos da diferença de vencimentos existente entre os cargos de inspetor chefe de agrupamento e os de inspetor chefe de divisão. Ver tópico (5 documentos) Parágrafo único - Igual vantagem terão os inspetores chefes de divisão aposentados na vigência da Lei nº 501, de 7 de novembro de 1949, que, incluídos na lista para promoção organizada em 1947, não se incompatibilizaram para o acesso pela prática de falta prevista no Regulamento de Promoções da Guarda Civil. Artigo 4º - A despesa com a execução da presente lei correrá por conta de verba própria do orçamento. Ver tópico (1 documento) Artigo 5º - Esta lei entrará em vigor na data de sua publicação, revogadas as disposições em contrário. Ver tópico Palácio do Governo do Estado de São Paulo, aos 21 de dezembro de 1950.
A162: 3017 | B162: Artigo 4 - Lei 3568/56 - Polícia Militar | C162: Comunicado DDP/G-15, de 30/09/2016 => DOE: 01/10/2016 | D162: Avaliar | E162: Artigo 4º - Aos Coronéis da Força Pública e aos Inspetores Chefes de Agrupamentos da Guarda Civil, que se enquadrem nas disposições desta Lei, fica assegurada a percepção da diferença de vencimentos que existe entre esses postos e classes, e os imediatamente inferiores | F162: Verificar se verba compõe a base prividenciária
A163: 3018 | B163: Artigo 3 - Lei 2054/52 - Polícia Militar | C163: Comunicado DDP/G-15, de 30/09/2016 => DOE: 01/10/2016 | D163: Acatar
A164: 3019 | B164: Prov. Comp. Lei Complementar 5451/86 - Polícia Molitar | C164: Comunicado DDP/G-15, de 30/09/2016 => DOE: 01/10/2016 | D164: Acatar
A165: 3020 | B165: Artigo 108 - Lei Complementar 478/86 | C165: Comunicado DDP/G-15, de 30/09/2016 => DOE: 01/10/2016 | D165: Avaliar | E165: Lei Complementar 478/86 | F165: Artigo 108 - O procurador do Estado ocupante de cargo em comissão vinculado à carreira que preencha as condições para aposentadoria e conte mais de 5 (cinco) anos ininterruptos ou 10 (dez) intercalados de exercício em cargo de provimento dessa natureza poderá ser aposentado com proventos correspondentes aos vencimentos do cargo em comissão que estiver exercendo, desde que se encontre em efetivo exercício há mais de um ano nesse cargo.
A166: 3021 | B166: Art.26 – Disposição Constitucional Transitória/ Constituição Estadual - Média Aulas | C166: Comunicado DDPE/G-13, de 07/04/2005 => DOE: 09/04/2005 | D166: Não Acatar
A167: 3022 | B167: Artigo133 - Constituição Estadual – Gratificação De Função - LC 724/93 | C167: Comunicado DDPE/G-15, de 04/07/2006 => DOE: 29/07/2006 | D167: Não Acatar
A168: 3023 | B168: Artigo 133 – Prêmio De Produtividade – Agente Fiscal De Rendas | C168: Comunicado DDPE/G-15, de 04/07/2006 => DOE: 29/07/2006 | D168: Não Acatar
A169: 3024 | B169: Artigo 133 - Diferença De Vencimentos - Ministério Público | C169: Comunicado DDP/G-05, de 31/01/1994 => DOE: 01/02/1994 | D169: Avaliar | F169: O servidor, com mais de cinco anos de efetivo exercício, que tenha exercido ou venha a exercer cargo ou função que lhe proporcione remuneração superior à do cargo de que seja titular, ou função para a qual foi admitido, incorporará um décimo dessa diferença, por ano, até o limite de dez décimos.
A170: 3025 | B170: Incorporação Horas Aula Artigo 1 DDTT Lei Complementar 1249/14 - Polícia Militar | C170: Comunicado DDP/G-15, de 30/09/2016 => DOE: 01/10/2016 | D170: Acatar
A171: 3026 | B171: Artigo 133 - Constituição Estadual Substituição Remunerada Polícia Militar | C171: Comunicado DDP/G-05, de 31/01/1994 => DOE: 01/02/1994 | D171: Não Acatar
A172: 3027 | B172: Diferença De Vencimentos - Artigo 133 Constituição Estadual/Valor | C172: Comunicado DDP/G-15, de 30/09/2016 => DOE: 01/10/2016 | D172: Avaliar | E172: Artigo 133 - O servidor, com mais de cinco anos de efetivo exercício, que tenha exercido ou venha a exercer, a qualquer título, cargo ou função que lhe proporcione remuneração superior à do cargo de que seja titular, ou função para a qual foi admitido, incorporará um décimo dessa diferença, por ano, até o limite de dez décimos. | F172: Avaliar se a verba compõe a base previdenciária
A173: 3028 | B173: Artigo 133 – Constituição Estadual – Diferença De Vencimentos Com Prêmio De Incentivo À Qualidade | C173: Comunicado DDPE/G-04, de 22/06/2012 => DOE: 27/06/2012 | D173: Avaliar | E173: Artigo 133 - O servidor, com mais de cinco anos de efetivo exercício, que tenha exercido ou venha a exercer, a qualquer título, cargo ou função que lhe proporcione remuneração superior à do cargo de que seja titular, ou função para a qual foi admitido, incorporará um décimo dessa diferença, por ano, até o limite de dez décimos. | F173: Avaliar se a verba compõe a base previdenciária
A174: 3029 | B174: Artigo 133 Ce – Pró-Labore LC 1193/2013 | C174: Comunicado DDP/G-003, de 27/10/2014 => DOE: 29/10/2014 | D174: Não Acatar
A175: 3030 | B175: Artigo 133 Ce - Gratificação Função-LC 1018/2007 | C175: Comunicado DDP/G-003, de 27/10/2014 => DOE: 29/10/2014 | D175: Não Acatar
A176: 3031 | B176: Artigo 133 – Pesquisador Cientifico-Sucen | C176: Comunicado DDP/G-003, de 27/10/2014 => DOE: 29/10/2014 | D176: Avaliar | F176: O servidor, com mais de cinco anos de efetivo exercício, que tenha exercido ou venha a exercer cargo ou função que lhe proporcione remuneração superior à do cargo de que seja titular, ou função para a qual foi admitido, incorporará um décimo dessa diferença, por ano, até o limite de dez décimos.
A177: 3032 | B177: Artigo 133 - Engenheiros - Sucen | C177: Comunicado DDP/G-003, de 27/10/2014 => DOE: 29/10/2014 | D177: Avaliar | F177: O servidor, com mais de cinco anos de efetivo exercício, que tenha exercido ou venha a exercer cargo ou função que lhe proporcione remuneração superior à do cargo de que seja titular, ou função para a qual foi admitido, incorporará um décimo dessa diferença, por ano, até o limite de dez décimos.
A178: 3033 | B178: Honorário Advocatício - Artigo 133 Da Constituição Estadual | C178: Comunicado DDP/G-003, de 27/10/2014 => DOE: 29/10/2014 | D178: Não Acatar
A179: 3034 | B179: Incorporação Horas-Aula - Artigo 1º DDTT LC 1249/14 | C179: Comunicado DDP/G-003, de 27/10/2014 => DOE: 29/10/2014 | D179: Acatar
A180: 3035 | B180: Incorporação Horas-Aula – Paragrafo 2º Artigo 9º - LC731 CC/ LC 1249/14 | C180: Comunicado DDP/G-003, de 27/10/2014 => DOE: 29/10/2014 | D180: Acatar
A181: 3036 | B181: Diferença Prêmio Incentivo x Prêmio De Produtividade Médica - Lei Complementar 1239/2014 | C181: Comunicado DDP/G-14, de 28/09/2016 => DOE: 29/09/2016 | D181: Não Acatar
A182: 3037 | B182: Artigo 133 Constituição Estadual - Centro De Estudos E Pesquisas De Administração Municipal | C182: Comunicado DDP/G-14, de 28/09/2016 => DOE: 29/09/2016 | D182: Avaliar | E182: Artigo 133 - O servidor, com mais de cinco anos de efetivo exercício, que tenha exercido ou venha a exercer, a qualquer título, cargo ou função que lhe proporcione remuneração superior à do cargo de que seja titular, ou função para a qual foi admitido, incorporará um décimo dessa diferença, por ano, até o limite de dez décimos. | F182: Avaliar se a verba compõe a base previdenciária
A183: 3038 | B183: Diferença Salarial Cargo Comissão Incorporado - Fundação do Desenvolvimento Administrativo | C183: Comunicado DDP/G-14, de 28/09/2016 => DOE: 29/09/2016 | D183: Acatar
A184: 3039 | B184: Incorporação Horas-Aula - Artigo 9º - LC 731/93 | C184: Comunicado DDP/G-03, de 14/06/2018 => DOE: 15/06/2018 | D184: Acatar
A185: 3040 | B185: Prêmio de Incentivo à Qualidade Incorporado LC 1.332/2018 | C185: Comunicado DDP/G-05, de 03/07/2020 => DOE: 04/07/2020 | D185: Acatar
A186: 3041 | B186: Prêmio de Incentivo à Qualidade Incorporado LC 1.332/2018 - Inativo | C186: Comunicado DDP/G-05, de 03/07/2020 => DOE: 04/07/2020 | D186: Acatar
A187: 4001 | B187: Regime Especial De Trabalho Policial | C187: Comunicado DDP/G-05, de 31/01/1994 => DOE: 01/02/1994 | D187: Acatar
A188: 4002 | B188: Gratificação Ferry Boats | C188: Comunicado DDP/G-15, de 30/09/2016 => DOE: 01/10/2016 | D188: Não Acatar
A189: 4003 | B189: Gratificação Especial | C189: Comunicado DDP/G-05, de 31/01/1994 => DOE: 01/02/1994 | D189: Avaliar | F189: Verificar se verba compõe a base prividenciária
A190: 4004 | B190: Regime De Advocacia Pública | C190: Comunicado DDP/G-05, de 31/01/1994 => DOE: 01/02/1994 | D190: Avaliar | F190: Verificar se verba compõe a base prividenciária
A191: 4005 | B191: Gratificação Especial Fazendária | C191: Comunicado DDP/G-05, de 31/01/1994 => DOE: 01/02/1994 | D191: Avaliar | F191: Verificar se verba compõe a base prividenciária
A192: 4006 | B192: Gratificação Atividade Contábil | C192: Comunicado DDP/G-05, de 31/01/1994 => DOE: 01/02/1994 | D192: Avaliar | F192: Verificar se verba compõe a base prividenciária
A193: 4007 | B193: Regime De Dedicação Plena Exclusiva | C193: Comunicado DDP/G-05, de 31/01/1994 => DOE: 01/02/1994 | D193: Avaliar | F193: Verificar se verba compõe a base prividenciária
A194: 4008 | B194: Gratificação Trabalho Curso Noturno – Escola Padrão - Especialista Da Educação - 30% | C194: Comunicado DDP/G-05, de 31/01/1994 => DOE: 01/02/1994 | D194: Não Acatar
A195: 4009 | B195: Gratificação De Função - Vice Diretor De Escola | C195: Comunicado DDP/G-05, de 31/01/1994 => DOE: 01/02/1994 | D195: Não Acatar
A196: 4010 | B196: Gratificação De Função - Diretor Escola Técnica | C196: Comunicado DDP/G-05, de 31/01/1994 => DOE: 01/02/1994 | D196: Não Acatar
A197: 4011 | B197: Gratificação Trabalho Noturno - 10% - Quadro Secretaria Da Educação / Quadro De Apoio Escolar | C197: Comunicado DDP/G-05, de 31/01/1994 => DOE: 01/02/1994 | D197: Não Acatar
A198: 4012 | B198: Gratificação Trabalho Curso Noturno – Especialista Da Educação -20% | C198: Comunicado DDP/G-05, de 31/01/1994 => DOE: 01/02/1994 | D198: Não Acatar
A199: 4013 | B199: Gratificação Trabalho Noturno - 10% | C199: Comunicado DDP/G-05, de 31/01/1994 => DOE: 01/02/1994 | D199: Não Acatar
A200: 4014 | B200: Gratificação Regime Tempo Integral – Pesquisador Científico | C200: Comunicado DDP/G-05, de 31/01/1994 => DOE: 01/02/1994 | D200: Avaliar | F200: Verificar se verba compõe a base prividenciária
... 2030 more rows

Sheet BASE DE CÁLCULO IRRF E PREV.
A1: Base de cálculo (em R$) | C1: Alíquota (%) | D1: Parcela a deduzir (em R$)
A2: DE | B2: ATÉ | C2: % | D2: DEDUÇÃO
A3: 0 | B3: 2259.2 | C3: 0 | D3: 0
A4: 2259.21 | B4: 2826.65 | C4: 0.075 | D4: 169.44
A5: 2826.66 | B5: 3751.05 | C5: 0.15 | D5: 381.44
A6: 3751.06 | B6: 4664.68 | C6: 0.225 | D6: 662.77
A7: 4664.69 | B7: 100000 | C7: 0.275 | D7: 896
A8: Valor da Dedução por dependente 2024: R$ 189,59
A9: fonte: https://www.gov.br/receitafederal/pt-br/assuntos/meu-imposto-de-renda/tabelas/2024
A10: Tabela de Contribuição do INSS / PREVIDÊNCIA ATUAL
A11: DE | B11: ATÉ | C11: ALÍQUOTA | D11: CONTRIBUIÇÃO MÁXIMA
A12: 0 | B12: 1518 | C12: 0.075 | D12: 951.53
A13: 1518.01 | B13: 2793.88 | C13: 0.09
A14: 2793.89 | B14: 4190.83 | C14: 0.12
A15: 4190.84 | B15: 8157.41 | C15: 0.14
A17: PERCENTUAL | B17: VALOR
A18: =IF('[1]Simulador de margem'!G4<='BASE DE CÁLCULO IRRF E PREV.'!B12,'BASE DE CÁLCULO IRRF E PREV.'!C12,IF('[1]Simulador de margem'!G4<='BASE DE CÁLCULO IRRF E PREV.'!B13,'BASE DE CÁLCULO IRRF E PREV.'!C13,IF('[1]Simulador de margem'!G4<='BASE DE CÁLCULO IRRF E PREV.'!B15,'BASE DE CÁLCULO IRRF E PREV.'!C15,'BASE DE CÁLCULO IRRF E PREV.'!C15))) -> 0.075 | B18: =IF('[1]Simulador de margem'!G4*A18<'BASE DE CÁLCULO IRRF E PREV.'!D12,'[1]Simulador de margem'!G4*A18,'[1]Simulador de margem'!H129) -> 0
A20: Tabela de Contribuição Previdenciária dos Aposentados e Pensionistas de SP
A21: DE | B21: ATÉ | C21: ALÍQUOTA | D21: CONTRIBUIÇÃO MÁXIMA
A22: 0 | B22: 1518 | C22: 0.11
A23: 1518.01 | B23: 4022.46 | C23: 0.12
A24: =B23+0.01 -> 4022.47 | B24: 8157.41 | C24: 0.14
A25: =B24+0.01 -> 8157.42 | B25: 100000 | C25: 0.16
A26: https://www.apatej.org.br/portaria-da-spprev-estabelece-aliquotas-de-contribuicao-previdenciaria-para-servidores/
